[Event "January 2 Early 2024"]
[Site "https://www.chess.com"]
[Date "2024.01.02"]
[Round "9"]
[White "Volkov, Maksim"]
[Black "Narayanan, Srinath"]
[Result "1-0"]
[Board "42"]
[TimeControl "180+1"]
[WhiteFideId "54123070"]
[BlackFideId "5018420"]
[WhiteElo "2654"]
[BlackElo "2832"]
[WhiteTeam "RUS"]
[BlackTeam "IND"]
[WhiteClock "0:00:21"]
[BlackClock "0:00:12"]

1. d4 {[%clk 0:03:00]}  f5 {[%clk 0:02:58]} 2. c4 {[%clk 0:03:00]}  Nf6 {[%clk 0:02:58]} 3. Nf3 {[%clk 0:03:01]}  g6 {[%clk 0:02:58]} 4. e3 {[%clk 0:03:00]}  Bg7 {[%clk 0:02:59]} 5. b4 {[%clk 0:03:00]}  O-O {[%clk 0:03:00]} 6. Be2 {[%clk 0:02:59]}  d6 {[%clk 0:03:00]} 7. Bb2 {[%clk 0:02:59]}  a5 {[%clk 0:03:00]} 8. b5 {[%clk 0:02:59]}  Re8 {[%clk 0:03:01]} 9. O-O {[%clk 0:02:58]}  Nbd7 {[%clk 0:03:01]} 10. Qb3 {[%clk 0:02:53]}  e6 {[%clk 0:02:57]} 11. Nc3 {[%clk 0:02:51]}  Qe7 {[%clk 0:02:57]} 12. Rac1 {[%clk 0:02:46]}  Kh8 {[%clk 0:02:58]} 13. Na4 {[%clk 0:02:44]}  e5 {[%clk 0:02:58]} 14. c5 {[%clk 0:02:44]}  e4 {[%clk 0:02:57]} 15. Ng5 {[%clk 0:02:41]}  d5 {[%clk 0:02:52]} 16. c6 {[%clk 0:02:37]}  bxc6 {[%clk 0:02:20]} 17. bxc6 {[%clk 0:01:38]}  Rb8 {[%clk 0:02:16]} 18. Qc3 {[%clk 0:01:38]}  Nf8 {[%clk 0:02:08]} 19. Ba3 {[%clk 0:01:37]}  Rb4 {[%clk 0:02:07]} 20. Bxb4 {[%clk 0:01:37]}  axb4 {[%clk 0:02:08]} 21. Qc5 {[%clk 0:01:37]}  h6 {[%clk 0:01:47]} 22. Qxe7 {[%clk 0:01:35]}  Rxe7 {[%clk 0:01:48]} 23. Nh3 {[%clk 0:01:35]}  g5 {[%clk 0:01:49]} 24. Nc5 {[%clk 0:01:27]}  f4 {[%clk 0:01:48]} 25. Kh1 {[%clk 0:01:18]}  f3 {[%clk 0:01:28]} 26. Ba6 {[%clk 0:01:18]}  Bf5 {[%clk 0:01:05]} 27. Ng1 {[%clk 0:01:18]}  g4 {[%clk 0:00:54]} 28. Rb1 {[%clk 0:01:11]}  Ng6 {[%clk 0:00:53]} 29. g3 {[%clk 0:01:05]}  h5 {[%clk 0:00:54]} 30. Rxb4 {[%clk 0:01:01]}  h4 {[%clk 0:00:54]} 31. a4 {[%clk 0:00:53]}  hxg3 {[%clk 0:00:53]} 32. fxg3 {[%clk 0:00:53]}  Bh6 {[%clk 0:00:53]} 33. Rb3 {[%clk 0:00:54]}  Nh5 {[%clk 0:00:53]} 34. Ne2 {[%clk 0:00:36]}  fxe2 {[%clk 0:00:43]} 35. Bxe2 {[%clk 0:00:37]}  Bc8 {[%clk 0:00:44]} 36. Rb8 {[%clk 0:00:35]}  Bxe3 {[%clk 0:00:38]} 37. Rxc8+ {[%clk 0:00:34]}  Kh7 {[%clk 0:00:35]} 38. Bxg4 {[%clk 0:00:34]}  Ng7 {[%clk 0:00:31]} 39. Nb3 {[%clk 0:00:26]}  Ne8 {[%clk 0:00:22]} 40. a5 {[%clk 0:00:23]}  Nd6 {[%clk 0:00:22]} 41. Rd8 {[%clk 0:00:24]}  Bg5 {[%clk 0:00:20]} 42. a6 {[%clk 0:00:22]}  Nb5 {[%clk 0:00:12]} 43. Rxd5 {[%clk 0:00:21]} 1-0

[Event "January 2 Early 2024"]
[Site "https://www.chess.com"]
[Date "2024.01.02"]
[Round "9"]
[White "Luo, Terry"]
[Black "De Winter, Arthur"]
[Result "0-1"]
[Board "47"]
[TimeControl "180+1"]
[WhiteFideId "30931045"]
[BlackFideId "1069020"]
[WhiteElo "2613"]
[BlackElo "2796"]
[WhiteTeam "USA"]
[BlackTeam "NED"]
[WhiteClock "0:02:03"]
[BlackClock "0:01:39"]

1. d4 {[%clk 0:03:00]}  Nf6 {[%clk 0:02:48]} 2. c4 {[%clk 0:02:59]}  g6 {[%clk 0:02:48]} 3. Nc3 {[%clk 0:02:58]}  Bg7 {[%clk 0:02:48]} 4. e4 {[%clk 0:02:59]}  d6 {[%clk 0:02:49]} 5. Nf3 {[%clk 0:02:59]}  O-O {[%clk 0:02:49]} 6. Be2 {[%clk 0:03:00]}  Nbd7 {[%clk 0:02:50]} 7. O-O {[%clk 0:03:01]}  e5 {[%clk 0:02:51]} 8. Be3 {[%clk 0:03:01]}  Qe7 {[%clk 0:02:51]} 9. d5 {[%clk 0:03:01]}  h6 {[%clk 0:02:48]} 10. Nd2 {[%clk 0:03:01]}  Nh7 {[%clk 0:02:45]} 11. Nb5 {[%clk 0:02:58]}  Qd8 {[%clk 0:02:38]} 12. Nxa7 {[%clk 0:02:49]}  f5 {[%clk 0:02:21]} 13. Nxc8 {[%clk 0:02:47]}  f4 {[%clk 0:02:15]} 14. Nxd6 {[%clk 0:02:16]}  cxd6 {[%clk 0:02:16]} 15. Bg4 {[%clk 0:02:14]}  fxe3 {[%clk 0:02:15]} 16. Be6+ {[%clk 0:02:14]}  Kh8 {[%clk 0:02:14]} 17. fxe3 {[%clk 0:02:15]}  Nc5 {[%clk 0:02:09]} 18. Qg4 {[%clk 0:02:15]}  Nxe6 {[%clk 0:02:02]} 19. Qxe6 {[%clk 0:02:16]}  Qb6 {[%clk 0:01:56]} 20. Nf3 {[%clk 0:02:05]}  Qxe3+ {[%clk 0:01:53]} 21. Kh1 {[%clk 0:02:05]}  Qxe4 {[%clk 0:01:49]} 22. Qxd6 {[%clk 0:02:05]}  Qxc4 {[%clk 0:01:39]} 23. Nxe5 {[%clk 0:02:03]} 0-1

[Event "January 2 Early 2024"]
[Site "https://www.chess.com"]
[Date "2024.01.02"]
[Round "9"]
[White "Veljanoski, Andrej"]
[Black "ilqar_74"]
[Result "0-1"]
[Board "48"]
[TimeControl "180+1"]
[WhiteFideId "15003604"]
[WhiteElo "2613"]
[BlackElo "2779"]
[WhiteTeam "MKD"]
[WhiteClock "0:00:02"]
[BlackClock "0:00:31"]

1. Nf3 {[%clk 0:03:00]}  Nf6 {[%clk 0:02:59]} 2. c4 {[%clk 0:02:58]}  e6 {[%clk 0:02:58]} 3. b3 {[%clk 0:02:58]}  d5 {[%clk 0:02:59]} 4. g3 {[%clk 0:02:58]}  Be7 {[%clk 0:02:58]} 5. Bg2 {[%clk 0:02:59]}  O-O {[%clk 0:02:59]} 6. O-O {[%clk 0:02:59]}  c5 {[%clk 0:03:00]} 7. cxd5 {[%clk 0:02:56]}  Nxd5 {[%clk 0:03:00]} 8. d4 {[%clk 0:02:57]}  cxd4 {[%clk 0:03:00]} 9. Bb2 {[%clk 0:02:56]}  Nc6 {[%clk 0:03:00]} 10. Nxd4 {[%clk 0:02:55]}  Bf6 {[%clk 0:03:00]} 11. Nxc6 {[%clk 0:02:47]}  bxc6 {[%clk 0:03:00]} 12. Qc1 {[%clk 0:02:47]}  Ba6 {[%clk 0:02:58]} 13. Bf3 {[%clk 0:02:45]}  Qb6 {[%clk 0:02:56]} 14. Nd2 {[%clk 0:02:35]}  Rac8 {[%clk 0:02:50]} 15. Ne4 {[%clk 0:02:33]}  Be7 {[%clk 0:02:46]} 16. h4 {[%clk 0:02:18]}  c5 {[%clk 0:02:41]} 17. Nd2 {[%clk 0:02:14]}  Rcd8 {[%clk 0:02:20]} 18. Nc4 {[%clk 0:02:12]}  Qc7 {[%clk 0:02:19]} 19. Rd1 {[%clk 0:01:57]}  Nb6 {[%clk 0:02:17]} 20. Be5 {[%clk 0:01:20]}  Qc8 {[%clk 0:02:13]} 21. Nd6 {[%clk 0:01:20]}  Qd7 {[%clk 0:02:00]} 22. Qc2 {[%clk 0:01:12]}  Nd5 {[%clk 0:01:54]} 23. Nc4 {[%clk 0:01:06]}  Qc8 {[%clk 0:01:48]} 24. Rac1 {[%clk 0:01:00]}  Bb5 {[%clk 0:01:45]} 25. Bb2 {[%clk 0:00:52]}  Qa6 {[%clk 0:01:39]} 26. a3 {[%clk 0:00:51]}  Nb6 {[%clk 0:01:34]} 27. Ne5 {[%clk 0:00:49]}  Rxd1+ {[%clk 0:01:30]} 28. Rxd1 {[%clk 0:00:48]}  c4 {[%clk 0:01:24]} 29. b4 {[%clk 0:00:44]}  Bf6 {[%clk 0:01:20]} 30. Rd6 {[%clk 0:00:38]}  Qc8 {[%clk 0:01:15]} 31. Be4 {[%clk 0:00:34]}  Qc7 {[%clk 0:01:08]} 32. Bxh7+ {[%clk 0:00:20]}  Kh8 {[%clk 0:01:08]} 33. Rxb6 {[%clk 0:00:17]}  axb6 {[%clk 0:01:01]} 34. f4 {[%clk 0:00:12]}  c3 {[%clk 0:00:50]} 35. Be4 {[%clk 0:00:10]}  Rc8 {[%clk 0:00:43]} 36. Kh2 {[%clk 0:00:03]}  Bxe5 {[%clk 0:00:41]} 37. fxe5 {[%clk 0:00:04]}  cxb2 {[%clk 0:00:37]} 38. Qd2 {[%clk 0:00:02]}  Qxe5 {[%clk 0:00:31]} 0-1

[Event "January 2 Early 2024"]
[Site "https://www.chess.com"]
[Date "2024.01.02"]
[Round "9"]
[White "Haug, Havard"]
[Black "Aswath, S"]
[Result "0-1"]
[Board "49"]
[TimeControl "180+1"]
[WhiteFideId "1547887"]
[BlackFideId "46694919"]
[WhiteElo "2777"]
[BlackElo "2610"]
[WhiteTeam "NOR"]
[BlackTeam "IND"]
[WhiteClock "0:00:09"]
[BlackClock "0:01:05"]

1. b3 {[%clk 0:03:00]}  e5 {[%clk 0:02:59]} 2. Bb2 {[%clk 0:03:01]}  Nc6 {[%clk 0:02:59]} 3. e3 {[%clk 0:03:01]}  Nf6 {[%clk 0:03:00]} 4. Bb5 {[%clk 0:03:00]}  Bd6 {[%clk 0:03:00]} 5. d3 {[%clk 0:02:55]}  a6 {[%clk 0:02:59]} 6. Bxc6 {[%clk 0:02:55]}  dxc6 {[%clk 0:03:00]} 7. e4 {[%clk 0:02:50]}  Be6 {[%clk 0:02:52]} 8. h3 {[%clk 0:02:48]}  Qe7 {[%clk 0:02:48]} 9. Nf3 {[%clk 0:02:47]}  Nd7 {[%clk 0:02:48]} 10. a4 {[%clk 0:02:46]}  g5 {[%clk 0:02:42]} 11. Nbd2 {[%clk 0:02:43]}  h5 {[%clk 0:02:42]} 12. Nc4 {[%clk 0:02:40]}  f6 {[%clk 0:02:42]} 13. Qe2 {[%clk 0:02:36]}  O-O-O {[%clk 0:02:40]} 14. O-O-O {[%clk 0:02:29]}  Bc5 {[%clk 0:02:37]} 15. Kb1 {[%clk 0:02:28]}  Nf8 {[%clk 0:02:17]} 16. d4 {[%clk 0:02:24]}  exd4 {[%clk 0:02:14]} 17. Bxd4 {[%clk 0:02:23]}  Ng6 {[%clk 0:02:08]} 18. g3 {[%clk 0:02:09]}  g4 {[%clk 0:02:02]} 19. Bxc5 {[%clk 0:01:57]}  Qxc5 {[%clk 0:01:59]} 20. Nfd2 {[%clk 0:01:57]}  b5 {[%clk 0:01:46]} 21. Nb2 {[%clk 0:01:51]}  gxh3 {[%clk 0:01:39]} 22. Nd3 {[%clk 0:01:34]}  Qc3 {[%clk 0:01:38]} 23. Qe3 {[%clk 0:01:25]}  Ne5 {[%clk 0:01:35]} 24. Qc5 {[%clk 0:01:01]}  Rxd3 {[%clk 0:01:32]} 25. Qa7 {[%clk 0:00:56]}  Rxd2 {[%clk 0:01:30]} 26. Rxd2 {[%clk 0:00:53]}  Qxd2 {[%clk 0:01:31]} 27. Qa8+ {[%clk 0:00:53]}  Kd7 {[%clk 0:01:30]} 28. Qxh8 {[%clk 0:00:53]}  bxa4 {[%clk 0:01:16]} 29. bxa4 {[%clk 0:00:28]}  Nc4 {[%clk 0:01:05]} 30. Qxf6 {[%clk 0:00:13]}  Na3+ {[%clk 0:01:05]} 31. Kb2 {[%clk 0:00:09]}  Qxc2+ {[%clk 0:01:05]} 32. Kxa3 {[%clk 0:00:09]}  Qb3# {[%clk 0:01:05]} 0-1

[Event "January 2 Early 2024"]
[Site "https://www.chess.com"]
[Date "2024.01.02"]
[Round "9"]
[White "Anuj Shrivatri"]
[Black "Aaditya Dhingra"]
[Result "1-0"]
[Board "50"]
[TimeControl "180+1"]
[WhiteFideId "35070924"]
[BlackFideId "25678191"]
[WhiteElo "2768"]
[BlackElo "2609"]
[WhiteTeam "IND"]
[BlackTeam "IND"]
[WhiteClock "0:00:31"]
[BlackClock "0:00:00"]

1. e4 {[%clk 0:02:51]}  e6 {[%clk 0:02:57]} 2. d4 {[%clk 0:02:50]}  d5 {[%clk 0:02:58]} 3. Nd2 {[%clk 0:02:49]}  Nf6 {[%clk 0:02:54]} 4. e5 {[%clk 0:02:49]}  Nfd7 {[%clk 0:02:54]} 5. c3 {[%clk 0:02:49]}  c5 {[%clk 0:02:54]} 6. Bd3 {[%clk 0:02:49]}  Nc6 {[%clk 0:02:55]} 7. Ne2 {[%clk 0:02:49]}  cxd4 {[%clk 0:02:48]} 8. cxd4 {[%clk 0:02:49]}  f6 {[%clk 0:02:48]} 9. exf6 {[%clk 0:02:50]}  Qxf6 {[%clk 0:02:43]} 10. Nf3 {[%clk 0:02:49]}  Bd6 {[%clk 0:02:42]} 11. O-O {[%clk 0:02:34]}  O-O {[%clk 0:02:42]} 12. Bc2 {[%clk 0:02:09]}  g6 {[%clk 0:02:27]} 13. a3 {[%clk 0:02:08]}  Qg7 {[%clk 0:02:25]} 14. Bg5 {[%clk 0:02:03]}  Kh8 {[%clk 0:02:17]} 15. Qd2 {[%clk 0:02:02]}  Rxf3 {[%clk 0:02:12]} 16. gxf3 {[%clk 0:02:03]}  e5 {[%clk 0:02:05]} 17. dxe5 {[%clk 0:01:56]}  Ndxe5 {[%clk 0:02:04]} 18. Qxd5 {[%clk 0:01:56]}  Bc7 {[%clk 0:01:53]} 19. Rfe1 {[%clk 0:01:33]}  Be6 {[%clk 0:01:50]} 20. Qxe6 {[%clk 0:01:30]}  Nxf3+ {[%clk 0:01:48]} 21. Kh1 {[%clk 0:01:30]}  Nxg5 {[%clk 0:01:46]} 22. Qg4 {[%clk 0:01:26]}  Qh6 {[%clk 0:01:25]} 23. Ng3 {[%clk 0:01:26]}  Rf8 {[%clk 0:01:23]} 24. f4 {[%clk 0:01:08]}  Rxf4 {[%clk 0:01:07]} 25. Qc8+ {[%clk 0:01:08]}  Rf8 {[%clk 0:00:59]} 26. Re8 {[%clk 0:01:06]}  Bd8 {[%clk 0:00:30]} 27. Rae1 {[%clk 0:00:43]}  Nf3 {[%clk 0:00:26]} 28. Rxf8+ {[%clk 0:00:42]}  Qxf8 {[%clk 0:00:24]} 29. Rf1 {[%clk 0:00:42]}  Qc5 {[%clk 0:00:12]} 30. Rxf3 {[%clk 0:00:42]}  Qxc2 {[%clk 0:00:11]} 31. Qd7 {[%clk 0:00:41]}  Be7 {[%clk 0:00:08]} 32. Rf7 {[%clk 0:00:34]}  Qc1+ {[%clk 0:00:06]} 33. Nf1 {[%clk 0:00:31]}  Bc5 {[%clk 0:00:00]} 34. Qe8+ {[%clk 0:00:31]} 1-0

[Event "January 2 Early 2024"]
[Site "https://www.chess.com"]
[Date "2024.01.02"]
[Round "9"]
[White "Arabidze, Meri"]
[Black "Weisz, Bryan"]
[Result "1-0"]
[Board "54"]
[TimeControl "180+1"]
[WhiteFideId "13604040"]
[BlackFideId "30934133"]
[WhiteElo "2736"]
[BlackElo "2525"]
[WhiteTeam "GEO"]
[BlackTeam "USA"]
[WhiteClock "0:00:06"]
[BlackClock "0:00:04"]

1. Nf3 {[%clk 0:03:00]}  f5 {[%clk 0:02:59]} 2. d3 {[%clk 0:02:59]}  Nf6 {[%clk 0:02:56]} 3. e4 {[%clk 0:02:59]}  fxe4 {[%clk 0:02:50]} 4. dxe4 {[%clk 0:03:00]}  Nxe4 {[%clk 0:02:51]} 5. Bd3 {[%clk 0:03:00]}  d5 {[%clk 0:02:51]} 6. Bxe4 {[%clk 0:02:54]}  dxe4 {[%clk 0:02:52]} 7. Qxd8+ {[%clk 0:02:55]}  Kxd8 {[%clk 0:02:52]} 8. Ng5 {[%clk 0:02:55]}  Ke8 {[%clk 0:02:50]} 9. Nc3 {[%clk 0:02:53]}  Nc6 {[%clk 0:02:44]} 10. Be3 {[%clk 0:02:51]}  e6 {[%clk 0:02:34]} 11. O-O-O {[%clk 0:02:48]}  Bd6 {[%clk 0:02:33]} 12. Ngxe4 {[%clk 0:02:39]}  Be5 {[%clk 0:02:27]} 13. Rhe1 {[%clk 0:02:34]}  Kf7 {[%clk 0:02:13]} 14. f4 {[%clk 0:02:31]}  Bxc3 {[%clk 0:02:13]} 15. Nxc3 {[%clk 0:02:32]}  e5 {[%clk 0:02:12]} 16. fxe5 {[%clk 0:02:16]}  Bg4 {[%clk 0:01:57]} 17. Rf1+ {[%clk 0:02:12]}  Kg6 {[%clk 0:01:56]} 18. Rde1 {[%clk 0:02:10]}  Rhf8 {[%clk 0:01:45]} 19. Bf4 {[%clk 0:01:59]}  Rae8 {[%clk 0:01:41]} 20. Nd5 {[%clk 0:01:57]}  Nxe5 {[%clk 0:01:31]} 21. Rg1 {[%clk 0:01:16]}  c6 {[%clk 0:01:11]} 22. Bxe5 {[%clk 0:00:57]}  cxd5 {[%clk 0:01:09]} 23. Bd4 {[%clk 0:00:54]}  Re4 {[%clk 0:00:56]} 24. Bxa7 {[%clk 0:00:47]}  Ra8 {[%clk 0:00:53]} 25. Rxe4 {[%clk 0:00:33]}  dxe4 {[%clk 0:00:53]} 26. Bd4 {[%clk 0:00:34]}  Rxa2 {[%clk 0:00:52]} 27. Kd2 {[%clk 0:00:34]}  Ra4 {[%clk 0:00:44]} 28. Ke3 {[%clk 0:00:34]}  h5 {[%clk 0:00:35]} 29. h3 {[%clk 0:00:32]}  Bd7 {[%clk 0:00:32]} 30. Rf1 {[%clk 0:00:24]}  Rc4 {[%clk 0:00:28]} 31. c3 {[%clk 0:00:23]}  b5 {[%clk 0:00:27]} 32. Rf8 {[%clk 0:00:22]}  Be6 {[%clk 0:00:12]} 33. Kxe4 {[%clk 0:00:21]}  b4 {[%clk 0:00:11]} 34. Ke5 {[%clk 0:00:20]}  bxc3 {[%clk 0:00:11]} 35. bxc3 {[%clk 0:00:17]}  Bd7 {[%clk 0:00:09]} 36. Kd6 {[%clk 0:00:14]}  Bc6 {[%clk 0:00:07]} 37. Rg8 {[%clk 0:00:13]}  Kf5 {[%clk 0:00:02]} 38. Rxg7 {[%clk 0:00:13]}  Be8 {[%clk 0:00:02]} 39. g4+ {[%clk 0:00:11]}  hxg4 {[%clk 0:00:03]} 40. hxg4+ {[%clk 0:00:12]}  Kf4 {[%clk 0:00:04]} 41. g5 {[%clk 0:00:12]}  Rc6+ {[%clk 0:00:03]} 42. Kd5 {[%clk 0:00:12]}  Ra6 {[%clk 0:00:01]} 43. Re7 {[%clk 0:00:09]}  Ra5+ {[%clk 0:00:02]} 44. Kd6 {[%clk 0:00:08]}  Bg6 {[%clk 0:00:03]} 45. Bf6 {[%clk 0:00:07]}  Be4 {[%clk 0:00:03]} 46. Rg7 {[%clk 0:00:06]}  Rd5+ {[%clk 0:00:04]} 47. Ke7 {[%clk 0:00:05]}  Rc5 {[%clk 0:00:04]} 48. Kd6 {[%clk 0:00:05]}  Rc6+ {[%clk 0:00:05]} 49. Kd7 {[%clk 0:00:05]}  Kf5 {[%clk 0:00:05]} 50. Kd8 {[%clk 0:00:03]}  Rd6+ {[%clk 0:00:05]} 51. Kc7 {[%clk 0:00:03]}  Rc6+ {[%clk 0:00:05]} 52. Kd7 {[%clk 0:00:04]}  Rc4 {[%clk 0:00:05]} 53. Re7 {[%clk 0:00:04]}  Bc6+ {[%clk 0:00:05]} 54. Kd6 {[%clk 0:00:04]}  Ba4 {[%clk 0:00:05]} 55. Re5+ {[%clk 0:00:04]}  Kg6 {[%clk 0:00:06]} 56. Rc5 {[%clk 0:00:05]}  Rf4 {[%clk 0:00:06]} 57. Ra5 {[%clk 0:00:04]}  Bb3 {[%clk 0:00:05]} 58. Ra8 {[%clk 0:00:04]}  Rc4 {[%clk 0:00:05]} 59. Rb8 {[%clk 0:00:03]}  Ba2 {[%clk 0:00:05]} 60. Rg8+ {[%clk 0:00:04]}  Kf5 {[%clk 0:00:05]} 61. Rf8 {[%clk 0:00:04]}  Kg6 {[%clk 0:00:05]} 62. Rg8+ {[%clk 0:00:04]}  Kf5 {[%clk 0:00:05]} 63. Ra8 {[%clk 0:00:05]}  Bb1 {[%clk 0:00:05]} 64. Kd5 {[%clk 0:00:04]}  Rc7 {[%clk 0:00:04]} 65. Kd6 {[%clk 0:00:04]}  Rc4 {[%clk 0:00:05]} 66. Ra5+ {[%clk 0:00:04]}  Kg6 {[%clk 0:00:05]} 67. Rb5 {[%clk 0:00:05]}  Be4 {[%clk 0:00:05]} 68. Rb4 {[%clk 0:00:05]}  Rc6+ {[%clk 0:00:05]} 69. Ke5 {[%clk 0:00:04]}  Bg2 {[%clk 0:00:05]} 70. Rh4 {[%clk 0:00:04]}  Rxc3 {[%clk 0:00:05]} 71. Rh6+ {[%clk 0:00:04]}  Kf7 {[%clk 0:00:05]} 72. Rh7+ {[%clk 0:00:04]}  Kg6 {[%clk 0:00:05]} 73. Rh6+ {[%clk 0:00:04]}  Kf7 {[%clk 0:00:05]} 74. g6+ {[%clk 0:00:05]}  Ke8 {[%clk 0:00:04]} 75. Rh8+ {[%clk 0:00:05]}  Kd7 {[%clk 0:00:05]} 76. g7 {[%clk 0:00:05]}  Rc5+ {[%clk 0:00:05]} 77. Kd4 {[%clk 0:00:05]}  Rd5+ {[%clk 0:00:05]} 78. Kc4 {[%clk 0:00:05]}  Rd1 {[%clk 0:00:06]} 79. g8=Q {[%clk 0:00:05]}  Rc1+ {[%clk 0:00:05]} 80. Bc3 {[%clk 0:00:04]}  Bf1+ {[%clk 0:00:05]} 81. Kb3 {[%clk 0:00:04]}  Be2 {[%clk 0:00:04]} 82. Qf7+ {[%clk 0:00:04]}  Kc6 {[%clk 0:00:05]} 83. Qf6+ {[%clk 0:00:04]}  Kd5 {[%clk 0:00:05]} 84. Qe5+ {[%clk 0:00:05]}  Kc6 {[%clk 0:00:06]} 85. Qxe2 {[%clk 0:00:05]}  Rb1+ {[%clk 0:00:04]} 86. Kc2 {[%clk 0:00:05]}  Rb5 {[%clk 0:00:05]} 87. Qxb5+ {[%clk 0:00:05]}  Kxb5 {[%clk 0:00:04]} 88. Rh4 {[%clk 0:00:06]} 1-0

[Event "January 2 Early 2024"]
[Site "https://www.chess.com"]
[Date "2024.01.02"]
[Round "9"]
[White "Srdanovic, Jovana"]
[Black "Tasev, Dejan"]
[Result "1-0"]
[Board "55"]
[TimeControl "180+1"]
[WhiteFideId "954810"]
[BlackFideId "936618"]
[WhiteElo "2522"]
[BlackElo "2713"]
[WhiteTeam "SRB"]
[BlackTeam "SRB"]
[WhiteClock "0:01:50"]
[BlackClock "0:01:04"]

1. d4 {[%clk 0:03:00]}  Nf6 {[%clk 0:02:59]} 2. c4 {[%clk 0:03:00]}  g6 {[%clk 0:02:59]} 3. Nc3 {[%clk 0:02:59]}  Bg7 {[%clk 0:03:00]} 4. e4 {[%clk 0:02:59]}  d6 {[%clk 0:03:00]} 5. Be2 {[%clk 0:02:59]}  O-O {[%clk 0:03:00]} 6. Be3 {[%clk 0:03:00]}  Nbd7 {[%clk 0:03:00]} 7. Nf3 {[%clk 0:02:57]}  c5 {[%clk 0:03:00]} 8. d5 {[%clk 0:02:56]}  b5 {[%clk 0:03:00]} 9. cxb5 {[%clk 0:02:56]}  a6 {[%clk 0:03:00]} 10. O-O {[%clk 0:02:53]}  axb5 {[%clk 0:02:59]} 11. Bxb5 {[%clk 0:02:54]}  Ba6 {[%clk 0:03:00]} 12. a4 {[%clk 0:02:51]}  Ne8 {[%clk 0:02:52]} 13. Bxa6 {[%clk 0:02:46]}  Rxa6 {[%clk 0:02:52]} 14. Nd2 {[%clk 0:02:46]}  Nc7 {[%clk 0:02:49]} 15. a5 {[%clk 0:02:40]}  Qa8 {[%clk 0:02:43]} 16. Nc4 {[%clk 0:02:38]}  Rb8 {[%clk 0:02:41]} 17. f4 {[%clk 0:02:37]}  Rb4 {[%clk 0:02:32]} 18. Qd3 {[%clk 0:02:37]}  Ra7 {[%clk 0:02:25]} 19. Ra3 {[%clk 0:02:29]}  Qb7 {[%clk 0:02:23]} 20. Rfa1 {[%clk 0:02:24]}  Na6 {[%clk 0:02:15]} 21. Nb6 {[%clk 0:02:13]}  Nf6 {[%clk 0:01:57]} 22. Nb5 {[%clk 0:02:07]}  Nxe4 {[%clk 0:01:47]} 23. Nxa7 {[%clk 0:02:03]}  Qxa7 {[%clk 0:01:46]} 24. Ra4 {[%clk 0:01:57]}  f5 {[%clk 0:01:34]} 25. Rxb4 {[%clk 0:01:53]}  Nxb4 {[%clk 0:01:34]} 26. Qb5 {[%clk 0:01:52]}  Nc2 {[%clk 0:01:28]} 27. Qe8+ {[%clk 0:01:50]}  Bf8 {[%clk 0:01:04]} 28. Nd7 {[%clk 0:01:50]} 1-0

[Event "January 2 Early 2024"]
[Site "https://www.chess.com"]
[Date "2024.01.02"]
[Round "9"]
[White "Han, Yichen"]
[Black "Kopczynski, Michal"]
[Result "1-0"]
[Board "56"]
[TimeControl "180+1"]
[WhiteFideId "1054430"]
[BlackFideId "1124200"]
[WhiteElo "2692"]
[BlackElo "2518"]
[WhiteTeam "NED"]
[BlackTeam "POL"]
[WhiteClock "0:00:51"]
[BlackClock "0:00:25"]

1. e4 {[%clk 0:03:00]}  b6 {[%clk 0:02:59]} 2. d4 {[%clk 0:03:00]}  Bb7 {[%clk 0:03:00]} 3. Nd2 {[%clk 0:03:00]}  e6 {[%clk 0:03:01]} 4. Ngf3 {[%clk 0:02:59]}  Nf6 {[%clk 0:03:01]} 5. Bd3 {[%clk 0:02:59]}  d5 {[%clk 0:03:02]} 6. e5 {[%clk 0:02:56]}  Nfd7 {[%clk 0:03:02]} 7. O-O {[%clk 0:02:57]}  c5 {[%clk 0:03:02]} 8. c3 {[%clk 0:02:57]}  Nc6 {[%clk 0:03:03]} 9. Qe2 {[%clk 0:02:52]}  Qc7 {[%clk 0:03:03]} 10. a3 {[%clk 0:02:49]}  O-O-O {[%clk 0:03:04]} 11. b4 {[%clk 0:02:49]}  c4 {[%clk 0:03:04]} 12. Bc2 {[%clk 0:02:49]}  h6 {[%clk 0:03:04]} 13. a4 {[%clk 0:02:48]}  Re8 {[%clk 0:03:05]} 14. Ba3 {[%clk 0:02:46]}  f5 {[%clk 0:03:04]} 15. a5 {[%clk 0:02:40]}  b5 {[%clk 0:03:04]} 16. Nh4 {[%clk 0:02:30]}  Ne7 {[%clk 0:02:55]} 17. Qh5 {[%clk 0:02:26]}  Rd8 {[%clk 0:02:44]} 18. Ng6 {[%clk 0:02:16]}  Nxg6 {[%clk 0:02:43]} 19. Qxg6 {[%clk 0:02:17]}  Qc6 {[%clk 0:02:38]} 20. Nf3 {[%clk 0:02:11]}  a6 {[%clk 0:02:25]} 21. Bc1 {[%clk 0:02:10]}  Rg8 {[%clk 0:02:18]} 22. Bxh6 {[%clk 0:01:57]}  Bxb4 {[%clk 0:02:18]} 23. Bg5 {[%clk 0:01:49]}  Bxc3 {[%clk 0:02:11]} 24. Bxd8 {[%clk 0:01:44]}  Bxa1 {[%clk 0:02:09]} 25. Be7 {[%clk 0:01:43]}  Bc3 {[%clk 0:02:04]} 26. Bd6 {[%clk 0:01:43]}  Bxa5 {[%clk 0:01:32]} 27. Qxe6 {[%clk 0:01:41]}  Rd8 {[%clk 0:01:32]} 28. Ng5 {[%clk 0:01:31]}  Bc7 {[%clk 0:01:20]} 29. Nf7 {[%clk 0:01:27]}  Bxd6 {[%clk 0:01:14]} 30. exd6 {[%clk 0:01:25]}  Rf8 {[%clk 0:01:10]} 31. Ne5 {[%clk 0:01:25]}  b4 {[%clk 0:00:51]} 32. Nxc6 {[%clk 0:01:21]}  Bxc6 {[%clk 0:00:52]} 33. Bxf5 {[%clk 0:01:12]}  b3 {[%clk 0:00:49]} 34. Qe5 {[%clk 0:01:04]}  Rd8 {[%clk 0:00:44]} 35. Qe1 {[%clk 0:00:58]}  Kb7 {[%clk 0:00:43]} 36. Qb4+ {[%clk 0:00:58]}  Nb6 {[%clk 0:00:43]} 37. Re1 {[%clk 0:00:55]}  Re8 {[%clk 0:00:34]} 38. Rxe8 {[%clk 0:00:55]}  Bxe8 {[%clk 0:00:35]} 39. Bc8+ {[%clk 0:00:53]}  Ka7 {[%clk 0:00:29]} 40. Qc5 {[%clk 0:00:52]}  b2 {[%clk 0:00:24]} 41. Qc7+ {[%clk 0:00:51]}  Ka8 {[%clk 0:00:25]} 42. Qb7# {[%clk 0:00:51]} 1-0